[Event "Elite Hotels Open 2024"]
[Site "Elite Stadshotellet, Kungsgatan 6, Vaxjo, Sweden"]
[Date "2024.02.10"]
[Round "6.14"]
[White "Johansson, Ulf"]
[Black "Bjorkman, Filip"]
[Result "0-1"]
[TimeControl "15 minutes + 5 seconds per move from move one (Round 1 - 4) / 90 minutes + 30 seconds per move from move one (Round 5 - 8)"]
[WhiteFideId "1701380"]
[BlackFideId "1734970"]
[WhiteElo "2141"]
[BlackElo "2046"]

1. e4 {[%clk 01:30:50]} {[%emt 00:00:09]} c5 {[%clk 01:30:28]} {[%emt
00:00:19]} 2. Nf3 {[%clk 01:31:15]} {[%emt 00:00:18]} Nc6 {[%clk 01:30:49]}
{[%emt 00:00:10]} 3. Bb5 {[%clk 01:31:06]} {[%emt 00:00:39]} g6 {[%clk
01:30:54]} {[%emt 00:00:24]} 4. O-O {[%clk 01:31:18]} {[%emt 00:00:18]} Bg7
{[%clk 01:31:21]} {[%emt 00:00:03]} 5. c3 {[%clk 01:31:37]} {[%emt 00:00:12]}
Nf6 {[%clk 01:31:46]} {[%emt 00:00:05]} 6. Re1 {[%clk 01:31:48]} {[%emt
00:00:18]} O-O {[%clk 01:32:04]} {[%emt 00:00:13]} 7. d4 {[%clk 01:31:50]}
{[%emt 00:00:28]} d5 {[%clk 01:32:29]} {[%emt 00:00:06]} 8. e5 {[%clk
01:31:51]} {[%emt 00:00:29]} Ne4 {[%clk 01:32:54]} {[%emt 00:00:05]} 9. Be3
{[%clk 01:32:03]} {[%emt 00:00:17]} cxd4 {[%clk 01:31:28]} {[%emt 00:01:57]} 10.
cxd4 {[%clk 01:32:26]} {[%emt 00:00:07]} Qb6 {[%clk 01:29:32]} {[%emt
00:02:26]} 11. Bxc6 {[%clk 01:31:28]} {[%emt 00:01:28]} bxc6 {[%clk 01:29:56]}
{[%emt 00:00:06]} 12. Qc1 {[%clk 01:30:58]} {[%emt 00:01:00]} f6 {[%clk
01:27:15]} {[%emt 00:03:11]} 13. Nc3 {[%clk 01:25:54]} {[%emt 00:05:34]} Bf5
{[%clk 01:19:40]} {[%emt 00:08:05]} 14. Nh4 {[%clk 01:16:44]} {[%emt 00:09:39]}
fxe5 {[%clk 00:43:58]} {[%emt 00:36:13]} 15. dxe5 {[%clk 00:46:35]} {[%emt
00:30:39]} d4 {[%clk 00:43:30]} {[%emt 00:00:58]} 16. Nxe4 {[%clk 00:40:54]}
{[%emt 00:06:12]} dxe3 {[%clk 00:43:40]} {[%emt 00:00:20]} 17. Qc4+ {[%clk
00:41:06]} {[%emt 00:00:18]} Kh8 {[%clk 00:43:21]} {[%emt 00:00:49]} 18. Rxe3
{[%clk 00:41:18]} {[%emt 00:00:18]} Qxb2 {[%clk 00:38:48]} {[%emt 00:05:04]} 19.
Rf1 {[%clk 00:41:21]} {[%emt 00:00:26]} Qxe5 {[%clk 00:37:31]} {[%emt
00:01:47]} 20. Qxc6 {[%clk 00:34:06]} {[%emt 00:07:45]} Rac8 {[%clk 00:33:56]}
{[%emt 00:04:05]} 21. Qa4 {[%clk 00:33:48]} {[%emt 00:00:48]} Qd4 {[%clk
00:33:28]} {[%emt 00:00:58]} 22. Qxd4 {[%clk 00:31:27]} {[%emt 00:02:51]} Bxd4
{[%clk 00:33:56]} {[%emt 00:00:02]} 23. Re2 {[%clk 00:29:16]} {[%emt 00:02:40]}
Bg4 {[%clk 00:31:29]} {[%emt 00:02:57]} 24. Rd2 {[%clk 00:25:33]} {[%emt
00:04:13]} Bb6 {[%clk 00:31:13]} {[%emt 00:00:47]} 25. h3 {[%clk 00:25:37]}
{[%emt 00:00:26]} Be6 {[%clk 00:31:27]} {[%emt 00:00:15]} 26. Nf3 {[%clk
00:25:23]} {[%emt 00:00:44]} Bxh3 {[%clk 00:30:27]} {[%emt 00:01:30]} 27. Ne5
{[%clk 00:24:01]} {[%emt 00:01:52]} Bf5 {[%clk 00:28:26]} {[%emt 00:02:31]} 28.
Ng3 {[%clk 00:24:17]} {[%emt 00:00:14]} Rc2 {[%clk 00:28:42]} {[%emt 00:00:14]}
29. Rxc2 {[%clk 00:17:49]} {[%emt 00:06:58]} Bxc2 {[%clk 00:29:10]} {[%emt
00:00:02]} 30. Nd7 {[%clk 00:18:13]} {[%emt 00:00:06]} Rd8 {[%clk 00:29:29]}
{[%emt 00:00:11]} 31. Nxb6 {[%clk 00:18:39]} {[%emt 00:00:04]} axb6 {[%clk
00:29:53]} {[%emt 00:00:07]} 32. Re1 {[%clk 00:18:57]} {[%emt 00:00:11]} Rd1
{[%clk 00:30:15]} {[%emt 00:00:07]} 33. Rxd1 {[%clk 00:19:22]} {[%emt
00:00:05]} Bxd1 {[%clk 00:30:41]} {[%emt 00:00:04]} 34. f4 {[%clk 00:19:44]}
{[%emt 00:00:08]} Kg7 {[%clk 00:30:39]} {[%emt 00:00:33]} 35. Kf2 {[%clk
00:20:08]} {[%emt 00:00:05]} Bc2 {[%clk 00:30:55]} {[%emt 00:00:13]} 36. Ke3
{[%clk 00:20:22]} {[%emt 00:00:17]} Kf6 {[%clk 00:31:09]} {[%emt 00:00:15]} 37.
Ne2 {[%clk 00:18:41]} {[%emt 00:02:11]} e5 {[%clk 00:30:44]} {[%emt 00:00:55]}
38. g3 {[%clk 00:18:53]} {[%emt 00:00:18]} h5 {[%clk 00:29:52]} {[%emt
00:01:22]} 39. Ng1 {[%clk 00:18:40]} {[%emt 00:00:43]} exf4+ {[%clk 00:29:51]}
{[%emt 00:00:32]} 40. Kxf4 {[%clk 00:19:03]} {[%emt 00:00:06]} g5+ {[%clk
00:30:02]} {[%emt 00:00:19]} 41. Kf3 {[%clk 00:19:06]} {[%emt 00:00:27]} Ke5
{[%clk 00:30:07]} {[%emt 00:00:24]} 42. Ke3 {[%clk 00:19:17]} {[%emt 00:00:19]}
Bd1 {[%clk 00:29:58]} {[%emt 00:00:40]} 43. Nh3 {[%clk 00:19:26]} {[%emt
00:00:22]} Kf5 {[%clk 00:30:18]} {[%emt 00:00:09]} 44. Nf2 {[%clk 00:19:49]}
{[%emt 00:00:07]} Bc2 {[%clk 00:30:37]} {[%emt 00:00:11]} 45. a3 {[%clk
00:17:19]} {[%emt 00:03:00]} Bb1 {[%clk 00:28:54]} {[%emt 00:02:12]} 46. Kf3
{[%clk 00:16:51]} {[%emt 00:00:58]} Bc2 {[%clk 00:27:58]} {[%emt 00:01:26]} 47.
Ke3 {[%clk 00:17:07]} {[%emt 00:00:15]} Bb3 {[%clk 00:26:37]} {[%emt 00:01:51]}
48. Ne4 {[%clk 00:09:06]} {[%emt 00:08:31]} Bd5 {[%clk 00:25:00]} {[%emt
00:02:07]} 49. Nc3 {[%clk 00:08:53]} {[%emt 00:00:44]} Bc6 {[%clk 00:25:19]}
{[%emt 00:00:10]} 50. Ne2 {[%clk 00:08:54]} {[%emt 00:00:29]} Ke5 {[%clk
00:24:56]} {[%emt 00:00:53]} 51. Ng1 {[%clk 00:08:10]} {[%emt 00:01:13]} h4
{[%clk 00:24:00]} {[%emt 00:01:26]} 52. g4 {[%clk 00:08:15]} {[%emt 00:00:25]}
Bg2 {[%clk 00:23:30]} {[%emt 00:00:59]} 53. Kf2 {[%clk 00:08:30]} {[%emt
00:00:16]} h3 {[%clk 00:21:18]} {[%emt 00:02:42]} 54. Ne2 {[%clk 00:08:52]}
{[%emt 00:00:08]} Ke4 {[%clk 00:19:57]} {[%emt 00:01:51]} 55. Kg3 {[%clk
00:06:15]} {[%emt 00:03:07]} Kd3 {[%clk 00:19:04]} {[%emt 00:01:23]} 56. Kf2
{[%clk 00:04:20]} {[%emt 00:02:25]} h2 {[%clk 00:17:58]} {[%emt 00:01:36]} 57.
Kxg2 {[%clk 00:01:57]} {[%emt 00:02:53]} Kxe2 {[%clk 00:18:19]} {[%emt
00:00:09]} 58. Kxh2 {[%clk 00:02:24]} {[%emt 00:00:03]} Kf3 {[%clk 00:18:23]}
{[%emt 00:00:27]} 59. Kh3 {[%clk 00:02:29]} {[%emt 00:00:25]} b5 {[%clk
00:18:43]} {[%emt 00:00:10]} 0-1

[Event "Elite Hotels Open 2024"]
[Site "Elite Stadshotellet, Kungsgatan 6, Vaxjo, Sweden"]
[Date "2024.02.10"]
[Round "6.15"]
[White "Nilsson, Eskil"]
[Black "Eriksson, Kristian"]
[Result "0-1"]
[TimeControl "15 minutes + 5 seconds per move from move one (Round 1 - 4) / 90 minutes + 30 seconds per move from move one (Round 5 - 8)"]
[WhiteFideId "1716220"]
[BlackFideId "1705172"]
[WhiteElo "2117"]
[BlackElo "2035"]

1. e4 {[%clk 01:30:55]} {[%emt 00:00:03]} e5 {[%clk 01:30:51]} {[%emt
00:00:10]} 2. Nf3 {[%clk 01:31:17]} {[%emt 00:00:08]} Nc6 {[%clk 01:31:14]}
{[%emt 00:00:07]} 3. Bc4 {[%clk 01:31:40]} {[%emt 00:00:07]} Nf6 {[%clk
01:31:36]} {[%emt 00:00:07]} 4. d3 {[%clk 01:32:03]} {[%emt 00:00:08]} h6
{[%clk 01:31:37]} {[%emt 00:00:28]} 5. O-O {[%clk 01:31:52]} {[%emt 00:00:42]}
d6 {[%clk 01:31:37]} {[%emt 00:00:29]} 6. c3 {[%clk 01:32:05]} {[%emt
00:00:17]} g6 {[%clk 01:31:24]} {[%emt 00:00:43]} 7. d4 {[%clk 01:31:59]}
{[%emt 00:00:35]} Qe7 {[%clk 01:30:41]} {[%emt 00:01:13]} 8. Nbd2 {[%clk
01:30:14]} {[%emt 00:02:16]} Bg7 {[%clk 01:31:01]} {[%emt 00:00:10]} 9. Re1
{[%clk 01:30:32]} {[%emt 00:00:12]} O-O {[%clk 01:30:43]} {[%emt 00:00:48]} 10.
h3 {[%clk 01:30:51]} {[%emt 00:00:11]} b6 {[%clk 01:29:15]} {[%emt 00:01:57]}
11. a4 {[%clk 01:29:03]} {[%emt 00:02:18]} Bb7 {[%clk 01:25:32]} {[%emt
00:04:13]} 12. Bd3 {[%clk 01:16:30]} {[%emt 00:13:03]} Nh5 {[%clk 01:17:19]}
{[%emt 00:08:43]} 13. d5 {[%clk 01:14:55]} {[%emt 00:02:06]} Nb8 {[%clk
01:17:31]} {[%emt 00:00:19]} 14. a5 {[%clk 01:12:42]} {[%emt 00:02:44]} Nf4
{[%clk 01:13:17]} {[%emt 00:04:43]} 15. Bf1 {[%clk 01:12:56]} {[%emt 00:00:17]}
Nd7 {[%clk 01:11:01]} {[%emt 00:02:46]} 16. g3 {[%clk 01:12:05]} {[%emt
00:01:22]} Nh5 {[%clk 01:10:37]} {[%emt 00:00:52]} 17. Nh4 {[%clk 01:11:44]}
{[%emt 00:00:51]} Ndf6 {[%clk 01:04:57]} {[%emt 00:06:10]} 18. c4 {[%clk
01:05:49]} {[%emt 00:06:26]} Bc8 {[%clk 00:59:37]} {[%emt 00:05:49]} 19. axb6
{[%clk 01:03:30]} {[%emt 00:02:50]} cxb6 {[%clk 00:59:59]} {[%emt 00:00:08]} 20.
Ra3 {[%clk 01:00:45]} {[%emt 00:03:15]} Kh7 {[%clk 00:53:14]} {[%emt 00:07:14]}
21. b4 {[%clk 00:58:08]} {[%emt 00:03:08]} Bd7 {[%clk 00:48:37]} {[%emt
00:05:07]} 22. Nb3 {[%clk 00:56:50]} {[%emt 00:01:47]} Rfc8 {[%clk 00:46:33]}
{[%emt 00:02:35]} 23. Qd3 {[%clk 00:51:39]} {[%emt 00:05:41]} Rc7 {[%clk
00:41:26]} {[%emt 00:05:37]} 24. Be3 {[%clk 00:49:12]} {[%emt 00:02:57]} g5
{[%clk 00:38:25]} {[%emt 00:03:31]} 25. Nf5 {[%clk 00:47:37]} {[%emt 00:02:05]}
Bxf5 {[%clk 00:38:07]} {[%emt 00:00:48]} 26. exf5 {[%clk 00:47:58]} {[%emt
00:00:09]} Rd8 {[%clk 00:32:53]} {[%emt 00:05:44]} 27. Bg2 {[%clk 00:44:19]}
{[%emt 00:04:09]} Kg8 {[%clk 00:24:46]} {[%emt 00:08:38]} 28. Rd1 {[%clk
00:34:19]} {[%emt 00:10:29]} Nd7 {[%clk 00:21:20]} {[%emt 00:03:57]} 29. c5
{[%clk 00:30:33]} {[%emt 00:04:16]} Nhf6 {[%clk 00:19:32]} {[%emt 00:02:18]} 30.
c6 {[%clk 00:29:54]} {[%emt 00:01:08]} e4 {[%clk 00:18:42]} {[%emt 00:01:21]}
31. Qb5 {[%clk 00:27:10]} {[%emt 00:03:14]} Ne5 {[%clk 00:18:32]} {[%emt
00:00:40]} 32. Nd2 {[%clk 00:25:38]} {[%emt 00:02:01]} g4 {[%clk 00:16:19]}
{[%emt 00:02:43]} 33. hxg4 {[%clk 00:25:03]} {[%emt 00:01:06]} Nexg4 {[%clk
00:16:10]} {[%emt 00:00:38]} 34. Bd4 {[%clk 00:24:43]} {[%emt 00:00:49]} Re8
{[%clk 00:13:45]} {[%emt 00:02:55]} 35. Re1 {[%clk 00:22:58]} {[%emt 00:02:15]}
Qd8 {[%clk 00:13:00]} {[%emt 00:01:16]} 36. Qc4 {[%clk 00:12:55]} {[%emt
00:10:33]} Qc8 {[%clk 00:09:03]} {[%emt 00:04:26]} 37. Bxe4 {[%clk 00:13:03]}
{[%emt 00:00:22]} Nxe4 {[%clk 00:07:22]} {[%emt 00:02:12]} 38. Rxe4 {[%clk
00:13:24]} {[%emt 00:00:08]} Rxe4 {[%clk 00:06:50]} {[%emt 00:01:02]} 39. Nxe4
{[%clk 00:13:48]} {[%emt 00:00:06]} Qxf5 {[%clk 00:06:39]} {[%emt 00:00:40]} 40.
Bxg7 {[%clk 00:10:52]} {[%emt 00:03:26]} Kxg7 {[%clk 00:06:01]} {[%emt
00:01:09]} 41. Nxd6 {[%clk 00:10:02]} {[%emt 00:01:19]} Qxf2+ {[%emt 00:00:21]}
0-1

[Event "Elite Hotels Open 2024"]
[Site "Elite Stadshotellet, Kungsgatan 6, Vaxjo, Sweden"]
[Date "2024.02.10"]
[Round "6.16"]
[White "Ljung, Harald"]
[Black "Willstedt, Lukas"]
[Result "1-0"]
[TimeControl "15 minutes + 5 seconds per move from move one (Round 1 - 4) / 90 minutes + 30 seconds per move from move one (Round 5 - 8)"]
[WhiteFideId "1738178"]
[BlackFideId "1751913"]
[WhiteElo "2098"]
[BlackElo "1982"]

1. d4 {[%clk 01:30:39]} {[%emt 00:00:20]} e6 {[%clk 01:28:40]} {[%emt
00:02:20]} 2. c4 {[%clk 01:31:01]} {[%emt 00:00:09]} Nf6 {[%clk 01:29:02]}
{[%emt 00:00:06]} 3. Nf3 {[%clk 01:31:24]} {[%emt 00:00:08]} d5 {[%clk
01:29:27]} {[%emt 00:00:05]} 4. Bg5 {[%clk 01:31:15]} {[%emt 00:00:39]} c6
{[%clk 01:26:05]} {[%emt 00:03:52]} 5. e3 {[%clk 01:31:31]} {[%emt 00:00:14]}
Nbd7 {[%clk 01:26:10]} {[%emt 00:00:25]} 6. Nc3 {[%clk 01:31:52]} {[%emt
00:00:09]} Bd6 {[%clk 01:26:24]} {[%emt 00:00:15]} 7. Rc1 {[%clk 01:31:57]}
{[%emt 00:00:26]} h6 {[%clk 01:26:28]} {[%emt 00:00:25]} 8. Bh4 {[%clk
01:31:53]} {[%emt 00:00:35]} O-O {[%clk 01:24:14]} {[%emt 00:02:44]} 9. Bd3
{[%clk 01:30:57]} {[%emt 00:01:26]} Be7 {[%clk 01:23:36]} {[%emt 00:01:09]} 10.
O-O {[%clk 01:30:58]} {[%emt 00:00:28]} b6 {[%clk 01:22:35]} {[%emt 00:01:32]}
11. cxd5 {[%clk 01:26:17]} {[%emt 00:05:11]} exd5 {[%clk 01:22:56]} {[%emt
00:00:09]} 12. Bb1 {[%clk 01:20:08]} {[%emt 00:06:39]} Bb7 {[%clk 01:20:18]}
{[%emt 00:03:08]} 13. Qd3 {[%clk 01:17:32]} {[%emt 00:03:06]} g6 {[%clk
01:11:59]} {[%emt 00:08:49]} 14. Rfd1 {[%clk 01:17:06]} {[%emt 00:00:55]} Re8
{[%clk 01:10:58]} {[%emt 00:01:31]} 15. Bg3 {[%clk 01:00:23]} {[%emt 00:17:14]}
Bf8 {[%clk 01:09:35]} {[%emt 00:01:53]} 16. Nd2 {[%clk 00:56:17]} {[%emt
00:04:36]} Bg7 {[%clk 01:07:26]} {[%emt 00:02:39]} 17. Bh4 {[%clk 00:50:43]}
{[%emt 00:06:04]} Qe7 {[%clk 00:58:33]} {[%emt 00:09:22]} 18. Re1 {[%clk
00:46:28]} {[%emt 00:04:46]} Qb4 {[%clk 00:54:11]} {[%emt 00:04:52]} 19. Qc2
{[%clk 00:38:34]} {[%emt 00:08:24]} Rac8 {[%clk 00:49:52]} {[%emt 00:04:49]} 20.
a3 {[%clk 00:38:57]} {[%emt 00:00:08]} Qf8 {[%clk 00:50:12]} {[%emt 00:00:09]}
21. Qa4 {[%clk 00:38:22]} {[%emt 00:01:06]} a6 {[%clk 00:48:57]} {[%emt
00:01:45]} 22. Ba2 {[%clk 00:35:22]} {[%emt 00:03:29]} Kh7 {[%clk 00:38:57]}
{[%emt 00:10:30]} 23. h3 {[%clk 00:34:10]} {[%emt 00:01:43]} Ne4 {[%clk
00:29:28]} {[%emt 00:09:59]} 24. Ncxe4 {[%clk 00:33:09]} {[%emt 00:01:31]} dxe4
{[%clk 00:25:35]} {[%emt 00:04:23]} 25. Qb3 {[%clk 00:29:24]} {[%emt 00:04:15]}
f5 {[%clk 00:23:26]} {[%emt 00:02:39]} 26. Qf7 {[%clk 00:28:45]} {[%emt
00:01:09]} Qxf7 {[%clk 00:17:29]} {[%emt 00:06:28]} 27. Bxf7 {[%clk 00:29:13]}
{[%emt 00:00:01]} Rf8 {[%clk 00:17:48]} {[%emt 00:00:11]} 28. Be6 {[%clk
00:29:23]} {[%emt 00:00:20]} g5 {[%clk 00:18:10]} {[%emt 00:00:07]} 29. Bg3
{[%clk 00:27:57]} {[%emt 00:01:56]} Rcd8 {[%clk 00:18:18]} {[%emt 00:00:22]} 30.
Bc7 {[%clk 00:27:43]} {[%emt 00:00:43]} Rc8 {[%clk 00:18:34]} {[%emt 00:00:15]}
31. Bd6 {[%clk 00:27:33]} {[%emt 00:00:40]} Rf6 {[%clk 00:17:35]} {[%emt
00:01:28]} 32. Bxd7 {[%clk 00:27:55]} {[%emt 00:00:08]} Rd8 {[%clk 00:18:00]}
{[%emt 00:00:05]} 33. Be7 {[%clk 00:27:58]} {[%emt 00:00:27]} Rxd7 {[%clk
00:18:24]} {[%emt 00:00:07]} 34. Bxf6 {[%clk 00:28:27]} {[%emt 00:00:01]} Bxf6
{[%clk 00:18:46]} {[%emt 00:00:08]} 35. b4 {[%clk 00:28:16]} {[%emt 00:00:40]}
Bd8 {[%clk 00:16:51]} {[%emt 00:02:25]} 36. Nc4 {[%clk 00:28:07]} {[%emt
00:00:40]} Bc7 {[%clk 00:17:11]} {[%emt 00:00:09]} 37. Red1 {[%clk 00:28:18]}
{[%emt 00:00:19]} Bd8 {[%clk 00:11:40]} {[%emt 00:06:02]} 1-0

[Event "Elite Hotels Open 2024"]
[Site "Elite Stadshotellet, Kungsgatan 6, Vaxjo, Sweden"]
[Date "2024.02.11"]
[Round "7.1"]
[White "Pantzar, Milton"]
[Black "Seo, Jung Min"]
[Result "1/2-1/2"]
[TimeControl "15 minutes + 5 seconds per move from move one (Round 1 - 4) / 90 minutes + 30 seconds per move from move one (Round 5 - 8)"]
[WhiteTitle "IM"]
[BlackTitle "IM"]
[WhiteFideId "1721003"]
[BlackFideId "1734687"]
[WhiteElo "2468"]
[BlackElo "2466"]

1. d4 {[%clk 01:30:56]} {[%emt 00:00:03]} Nf6 {[%clk 01:31:00]} {[%emt
00:00:02]} 2. Nf3 {[%clk 01:30:30]} {[%emt 00:00:55]} d5 {[%clk 01:31:23]}
{[%emt 00:00:07]} 3. c4 {[%clk 01:30:44]} {[%emt 00:00:16]} e6 {[%clk
01:31:50]} {[%emt 00:00:03]} 4. g3 {[%clk 01:30:54]} {[%emt 00:00:19]} Bb4+
{[%clk 01:32:17]} {[%emt 00:00:03]} 5. Bd2 {[%clk 01:30:50]} {[%emt 00:00:34]}
Be7 {[%clk 01:32:43]} {[%emt 00:00:05]} 6. Bg2 {[%clk 01:30:38]} {[%emt
00:00:41]} Nbd7 {[%clk 01:33:02]} {[%emt 00:00:11]} 7. Qc2 {[%clk 01:30:17]}
{[%emt 00:00:51]} c6 {[%clk 01:33:22]} {[%emt 00:00:11]} 8. Nc3 {[%clk
01:29:05]} {[%emt 00:01:42]} dxc4 {[%clk 01:21:10]} {[%emt 00:12:42]} 9. Rd1
{[%clk 01:27:36]} {[%emt 00:01:58]} Nd5 {[%clk 01:12:04]} {[%emt 00:09:38]} 10.
h4 {[%clk 01:16:09]} {[%emt 00:11:56]} b5 {[%clk 01:10:39]} {[%emt 00:01:55]}
11. Ne4 {[%clk 01:09:19]} {[%emt 00:07:20]} Qc7 {[%clk 01:00:23]} {[%emt
00:10:45]} 12. O-O {[%clk 01:02:41]} {[%emt 00:07:08]} 1/2-1/2

[Event "Elite Hotels Open 2024"]
[Site "Elite Stadshotellet, Kungsgatan 6, Vaxjo, Sweden"]
[Date "2024.02.11"]
[Round "7.2"]
[White "Hillarp, Tiger"]
[Black "Kistrup, Nicolai"]
[Result "1-0"]
[TimeControl "15 minutes + 5 seconds per move from move one (Round 1 - 4) / 90 minutes + 30 seconds per move from move one (Round 5 - 8)"]
[WhiteTitle "GM"]
[BlackTitle "FM"]
[WhiteFideId "1700812"]
[BlackFideId "1444816"]
[WhiteElo "2476"]
[BlackElo "2326"]

1. Nf3 {[%clk 01:30:31]} {[%emt 00:00:28]} d5 {[%clk 01:30:54]} {[%emt
00:00:06]} 2. g3 {[%clk 01:30:44]} {[%emt 00:00:17]} c5 {[%clk 01:31:20]}
{[%emt 00:00:04]} 3. c4 {[%clk 01:29:48]} {[%emt 00:01:26]} d4 {[%clk
01:30:54]} {[%emt 00:00:56]} 4. b4 {[%clk 01:29:00]} {[%emt 00:01:18]} cxb4
{[%clk 01:19:51]} {[%emt 00:11:34]} 5. a3 {[%clk 01:29:20]} {[%emt 00:00:09]}
bxa3 {[%clk 01:19:39]} {[%emt 00:00:42]} 6. Bxa3 {[%clk 01:25:59]} {[%emt
00:03:51]} Nc6 {[%clk 01:19:25]} {[%emt 00:00:44]} 7. Bg2 {[%clk 01:23:37]}
{[%emt 00:02:52]} e5 {[%clk 01:18:50]} {[%emt 00:01:06]} 8. Bxf8 {[%clk
01:16:06]} {[%emt 00:07:59]} Kxf8 {[%clk 01:19:15]} {[%emt 00:00:07]} 9. d3
{[%clk 01:16:23]} {[%emt 00:00:12]} g6 {[%clk 01:17:40]} {[%emt 00:02:05]} 10.
O-O {[%clk 01:15:35]} {[%emt 00:01:18]} Kg7 {[%clk 01:17:25]} {[%emt 00:00:44]}
11. Nbd2 {[%clk 01:15:52]} {[%emt 00:00:13]} Nf6 {[%clk 01:15:19]} {[%emt
00:02:37]} 12. Ra3 {[%clk 01:07:11]} {[%emt 00:09:11]} a5 {[%clk 01:09:32]}
{[%emt 00:06:17]} 13. Qa1 {[%clk 01:04:39]} {[%emt 00:03:02]} Ra6 {[%clk
01:01:08]} {[%emt 00:08:54]} 14. Ng5 {[%clk 00:34:04]} {[%emt 00:31:04]} Qe7
{[%clk 00:47:36]} {[%emt 00:14:03]} 15. Bxc6 {[%clk 00:31:54]} {[%emt
00:02:40]} Rxc6 {[%clk 00:44:13]} {[%emt 00:03:53]} 16. Rxa5 {[%clk 00:32:16]}
{[%emt 00:00:07]} Nd7 {[%clk 00:37:09]} {[%emt 00:07:34]} 17. f4 {[%clk
00:28:22]} {[%emt 00:04:24]} Nc5 {[%clk 00:21:17]} {[%emt 00:16:21]} 18. Nde4
{[%clk 00:12:00]} {[%emt 00:16:53]} f6 {[%clk 00:15:25]} {[%emt 00:06:22]} 19.
fxe5 {[%clk 00:10:16]} {[%emt 00:02:14]} fxg5 {[%clk 00:12:07]} {[%emt
00:03:48]} 20. Rxc5 {[%clk 00:10:29]} {[%emt 00:00:17]} Rxc5 {[%clk 00:11:43]}
{[%emt 00:00:55]} 21. e6 {[%clk 00:10:51]} {[%emt 00:00:07]} Qxe6 {[%clk
00:07:07]} {[%emt 00:05:06]} 22. Qxd4+ {[%clk 00:11:12]} {[%emt 00:00:09]} Qe5
{[%clk 00:05:49]} {[%emt 00:01:48]} 23. Qxc5 {[%clk 00:11:29]} {[%emt
00:00:13]} Qxc5+ {[%clk 00:04:54]} {[%emt 00:01:25]} 24. Nxc5 {[%clk 00:11:51]}
{[%emt 00:00:07]} Re8 {[%clk 00:04:14]} {[%emt 00:01:10]} 25. Kf2 {[%clk
00:12:13]} {[%emt 00:00:08]} Re7 {[%clk 00:02:28]} {[%emt 00:02:18]} 26. Rb1
{[%clk 00:12:19]} {[%emt 00:00:23]} Rf7+ {[%clk 00:01:37]} {[%emt 00:01:21]} 27.
Ke3 {[%clk 00:12:34]} {[%emt 00:00:15]} Re7+ {[%clk 00:02:03]} {[%emt
00:00:04]} 28. Kd2 {[%clk 00:12:53]} {[%emt 00:00:11]} Rf7 {[%clk 00:02:15]}
{[%emt 00:00:18]} 29. Ne4 {[%clk 00:13:15]} {[%emt 00:00:08]} Rd7 {[%clk
00:01:33]} {[%emt 00:01:12]} 30. Nxg5 {[%clk 00:13:36]} {[%emt 00:00:09]} Re7
{[%clk 00:01:04]} {[%emt 00:00:59]} 31. Ne4 {[%clk 00:13:42]} {[%emt 00:00:24]}
Bg4 {[%clk 00:00:54]} {[%emt 00:00:39]} 32. Rf1 {[%clk 00:13:11]} {[%emt
00:01:01]} h5 {[%clk 00:00:44]} {[%emt 00:00:41]} 33. h4 {[%clk 00:13:26]}
{[%emt 00:00:15]} Bh3 {[%clk 00:00:51]} {[%emt 00:00:25]} 34. Rf4 {[%clk
00:13:09]} {[%emt 00:00:46]} Bg4 {[%clk 00:00:53]} {[%emt 00:00:29]} 35. e3
{[%clk 00:13:13]} {[%emt 00:00:25]} b6 {[%clk 00:00:36]} {[%emt 00:00:47]} 36.
Nf6 {[%clk 00:13:14]} {[%emt 00:00:29]} Be6 {[%clk 00:00:44]} {[%emt 00:00:22]}
37. Nd5 {[%clk 00:13:14]} {[%emt 00:00:29]} Rb7 {[%clk 00:00:39]} {[%emt
00:00:35]} 38. Nc3 {[%clk 00:13:18]} {[%emt 00:00:26]} Ra7 {[%clk 00:00:44]}
{[%emt 00:00:26]} 39. Rd4 {[%clk 00:13:24]} {[%emt 00:00:24]} Kf7 {[%clk
00:00:49]} {[%emt 00:00:25]} 40. Rd6 {[%clk 00:13:42]} {[%emt 00:00:12]} Rb7
{[%clk 00:01:05]} {[%emt 00:00:15]} 41. Nb5 {[%clk 00:13:51]} {[%emt 00:00:20]}
Rb8 {[%clk 00:00:35]} {[%emt 00:01:00]} 42. Kc3 {[%clk 00:14:05]} {[%emt
00:00:15]} Ke7 {[%clk 00:00:47]} {[%emt 00:00:19]} 43. e4 {[%clk 00:14:18]}
{[%emt 00:00:16]} 1-0